[Event "Titled Tuesday Blitz May 17 Early 2022"]
[White "Wagh Suyog"]
[Black "Artemenko, Oleg"]
[WhiteFideId "25071688"]
[BlackFideId "14201798"]
[WhiteElo "2181"]
[BlackElo "2287"]
[Result "1-0"]
[Round "05"]
[TimeControl "180+1"]
[Date "2022.05.17"]
[WhiteClock "0:02:04"]
[BlackClock "0:02:29"]

1. e4 {[%clk 0:03:00]}  e6 {[%clk 0:02:59]} 2. d4 {[%clk 0:02:59]}  d5 {[%clk 0:03:00]} 3. Bd3 {[%clk 0:02:59]}  dxe4 {[%clk 0:03:00]} 4. Bxe4 {[%clk 0:03:00]}  Nf6 {[%clk 0:03:01]} 5. Bf3 {[%clk 0:03:00]}  c5 {[%clk 0:03:02]} 6. Ne2 {[%clk 0:02:59]}  Nc6 {[%clk 0:03:02]} 7. Be3 {[%clk 0:02:59]}  cxd4 {[%clk 0:02:59]} 8. Nxd4 {[%clk 0:03:00]}  Nxd4 {[%clk 0:02:59]} 9. Qxd4 {[%clk 0:02:59]}  Qxd4 {[%clk 0:02:59]} 10. Bxd4 {[%clk 0:03:00]}  Bd6 {[%clk 0:02:57]} 11. Nd2 {[%clk 0:02:57]}  O-O {[%clk 0:02:49]} 12. Nc4 {[%clk 0:02:56]}  Bc7 {[%clk 0:02:49]} 13. O-O-O {[%clk 0:02:50]}  Rd8 {[%clk 0:02:45]} 14. Be5 {[%clk 0:02:34]}  Rxd1+ {[%clk 0:02:28]} 15. Rxd1 {[%clk 0:02:35]}  Bd7 {[%clk 0:02:29]} 16. Bxc7 {[%clk 0:02:20]}  Rc8 {[%clk 0:02:29]} 17. Be5 {[%clk 0:02:20]}  Rxc4 {[%clk 0:02:27]} 18. Bxf6 {[%clk 0:02:20]}  gxf6 {[%clk 0:02:28]} 19. Rxd7 {[%clk 0:02:20]}  e5 {[%clk 0:02:29]} 20. Bd5 {[%clk 0:02:18]}  Rf4 {[%clk 0:02:30]} 21. f3 {[%clk 0:02:18]}  Kg7 {[%clk 0:02:29]} 22. Rxf7+ {[%clk 0:02:18]}  Kg6 {[%clk 0:02:30]} 23. Rxb7 {[%clk 0:02:18]}  Rd4 {[%clk 0:02:30]} 24. Be4+ {[%clk 0:02:15]}  f5 {[%clk 0:02:31]} 25. Bd3 {[%clk 0:02:15]}  e4 {[%clk 0:02:31]} 26. fxe4 {[%clk 0:02:12]}  fxe4 {[%clk 0:02:32]} 27. Be2 {[%clk 0:02:12]}  e3 {[%clk 0:02:32]} 28. Bd3+ {[%clk 0:02:11]}  Kg5 {[%clk 0:02:32]} 29. Kd1 {[%clk 0:02:12]}  Rh4 {[%clk 0:02:32]} 30. h3 {[%clk 0:02:11]}  Kf4 {[%clk 0:02:32]} 31. Ke2 {[%clk 0:02:12]}  Kg3 {[%clk 0:02:33]} 32. Rg7+ {[%clk 0:02:11]}  Kh2 {[%clk 0:02:33]} 33. Kxe3 {[%clk 0:02:12]}  a5 {[%clk 0:02:33]} 34. Rxh7 {[%clk 0:02:11]}  Rb4 {[%clk 0:02:33]} 35. b3 {[%clk 0:02:10]}  a4 {[%clk 0:02:33]} 36. bxa4 {[%clk 0:02:10]}  Rxa4 {[%clk 0:02:33]} 37. g4 {[%clk 0:02:11]}  Rxa2 {[%clk 0:02:34]} 38. g5 {[%clk 0:02:12]}  Ra5 {[%clk 0:02:34]} 39. g6 {[%clk 0:02:12]}  Rg5 {[%clk 0:02:34]} 40. h4 {[%clk 0:02:12]}  Rg3+ {[%clk 0:02:34]} 41. Kd2 {[%clk 0:02:12]}  Rg2+ {[%clk 0:02:34]} 42. Kc3 {[%clk 0:02:12]}  Rg1 {[%clk 0:02:34]} 43. h5 {[%clk 0:02:13]}  Rg5 {[%clk 0:02:33]} 44. h6 {[%clk 0:02:13]}  Kh1 {[%clk 0:02:32]} 45. g7 {[%clk 0:02:13]}  Rg4 {[%clk 0:02:32]} 46. Rh8 {[%clk 0:02:13]}  Rg5 {[%clk 0:02:31]} 47. g8=Q {[%clk 0:02:13]}  Rg3 {[%clk 0:02:31]} 48. Kb2 {[%clk 0:02:09]}  Re3 {[%clk 0:02:26]} 49. h7 {[%clk 0:02:05]}  Rg3 {[%clk 0:02:26]} 50. Be4+ {[%clk 0:02:05]}  Kh2 {[%clk 0:02:25]} 51. Qxg3+ {[%clk 0:02:05]}  Kxg3 {[%clk 0:02:26]} 52. Rg8+ {[%clk 0:02:06]}  Kf2 {[%clk 0:02:27]} 53. h8=Q {[%clk 0:02:06]}  Ke3 {[%clk 0:02:28]} 54. Qh3+ {[%clk 0:02:05]}  Kd4 {[%clk 0:02:28]} 55. Rd8+ {[%clk 0:02:05]}  Ke5 {[%clk 0:02:29]} 56. Qf5# {[%clk 0:02:04]} 1-0


[Site "https://www.chess.com"]

[Event "Titled Tuesday Blitz May 17 Early 2022"]
[White "Xiong, Jeffery"]
[Black "Ohanyan, Emin"]
[WhiteFideId "2047640"]
[BlackFideId "13312022"]
[WhiteElo "2727"]
[BlackElo "1927"]
[Result "1-0"]
[Round "05"]
[TimeControl "180+1"]
[Date "2022.05.17"]
[WhiteClock "0:00:40"]
[BlackClock "0:00:03"]

1. e4 {[%clk 0:03:00]}  e5 {[%clk 0:02:56]} 2. Nf3 {[%clk 0:03:01]}  Nc6 {[%clk 0:02:57]} 3. Nc3 {[%clk 0:03:01]}  Nf6 {[%clk 0:02:54]} 4. d4 {[%clk 0:03:02]}  exd4 {[%clk 0:02:54]} 5. Nxd4 {[%clk 0:03:03]}  Bb4 {[%clk 0:02:54]} 6. Nxc6 {[%clk 0:03:03]}  bxc6 {[%clk 0:02:50]} 7. Bd3 {[%clk 0:03:03]}  d5 {[%clk 0:02:50]} 8. exd5 {[%clk 0:03:04]}  O-O {[%clk 0:02:50]} 9. O-O {[%clk 0:03:05]}  cxd5 {[%clk 0:02:51]} 10. h3 {[%clk 0:03:05]}  c6 {[%clk 0:02:44]} 11. Qf3 {[%clk 0:03:05]}  Bd6 {[%clk 0:02:36]} 12. Bf4 {[%clk 0:03:05]}  Rb8 {[%clk 0:02:34]} 13. b3 {[%clk 0:03:05]}  Rb4 {[%clk 0:02:28]} 14. Ne2 {[%clk 0:03:06]}  Re8 {[%clk 0:02:26]} 15. Rad1 {[%clk 0:02:58]}  Bxf4 {[%clk 0:02:16]} 16. Nxf4 {[%clk 0:02:58]}  Qd6 {[%clk 0:02:11]} 17. c4 {[%clk 0:02:59]}  Be6 {[%clk 0:01:51]} 18. Rfe1 {[%clk 0:02:58]}  Rb7 {[%clk 0:01:49]} 19. cxd5 {[%clk 0:01:52]}  cxd5 {[%clk 0:01:33]} 20. Bc4 {[%clk 0:01:45]}  Rbe7 {[%clk 0:00:55]} 21. Nxd5 {[%clk 0:01:03]}  Bxd5 {[%clk 0:00:33]} 22. Rxe7 {[%clk 0:01:04]}  Qxe7 {[%clk 0:00:06]} 23. Bxd5 {[%clk 0:01:04]}  g6 {[%clk 0:00:05]} 24. Bc4 {[%clk 0:01:04]}  Kg7 {[%clk 0:00:05]} 25. g3 {[%clk 0:01:03]}  Qe5 {[%clk 0:00:05]} 26. Kg2 {[%clk 0:00:58]}  Qb2 {[%clk 0:00:03]} 27. Rd7 {[%clk 0:00:58]}  Rf8 {[%clk 0:00:01]} 28. Rxa7 {[%clk 0:00:58]}  Qd4 {[%clk 0:00:02]} 29. Re7 {[%clk 0:00:57]}  h5 {[%clk 0:00:02]} 30. a4 {[%clk 0:00:55]}  h4 {[%clk 0:00:02]} 31. g4 {[%clk 0:00:56]}  Kh6 {[%clk 0:00:02]} 32. Rxf7 {[%clk 0:00:43]}  Rxf7 {[%clk 0:00:02]} 33. Bxf7 {[%clk 0:00:44]}  g5 {[%clk 0:00:02]} 34. Qf5 {[%clk 0:00:42]}  Qe4+ {[%clk 0:00:02]} 35. Qxe4 {[%clk 0:00:41]}  Nxe4 {[%clk 0:00:03]} 36. a5 {[%clk 0:00:40]} 1-0


[Site "https://www.chess.com"]

[Event "Titled Tuesday Blitz May 17 Early 2022"]
[White "Xu, Yi"]
[Black "Chigaev, Maksim"]
[WhiteFideId "8605564"]
[BlackFideId "4108116"]
[WhiteElo "2471"]
[BlackElo "2457"]
[Result "0-1"]
[Round "05"]
[TimeControl "180+1"]
[Date "2022.05.17"]
[WhiteClock "0:00:06"]
[BlackClock "0:00:13"]

1. e4 {[%clk 0:03:00]}  e5 {[%clk 0:02:58]} 2. Nf3 {[%clk 0:03:01]}  Nc6 {[%clk 0:02:58]} 3. Bc4 {[%clk 0:03:01]}  Nf6 {[%clk 0:02:58]} 4. d3 {[%clk 0:03:01]}  Bc5 {[%clk 0:02:58]} 5. O-O {[%clk 0:03:01]}  d6 {[%clk 0:02:59]} 6. c3 {[%clk 0:03:01]}  h6 {[%clk 0:03:00]} 7. Re1 {[%clk 0:02:57]}  O-O {[%clk 0:02:58]} 8. h3 {[%clk 0:02:57]}  a5 {[%clk 0:02:58]} 9. Nbd2 {[%clk 0:02:57]}  a4 {[%clk 0:02:55]} 10. Bb5 {[%clk 0:02:50]}  Bd7 {[%clk 0:02:55]} 11. Nc4 {[%clk 0:02:31]}  Re8 {[%clk 0:02:05]} 12. Be3 {[%clk 0:02:09]}  Bxe3 {[%clk 0:01:54]} 13. Nxe3 {[%clk 0:02:09]}  a3 {[%clk 0:01:53]} 14. b4 {[%clk 0:02:06]}  Ne7 {[%clk 0:01:53]} 15. Bc4 {[%clk 0:02:00]}  Ng6 {[%clk 0:01:50]} 16. Nf1 {[%clk 0:01:47]}  c6 {[%clk 0:01:49]} 17. Bb3 {[%clk 0:01:46]}  d5 {[%clk 0:01:48]} 18. Ng3 {[%clk 0:01:46]}  Be6 {[%clk 0:01:48]} 19. exd5 {[%clk 0:01:19]}  Nxd5 {[%clk 0:01:37]} 20. Qd2 {[%clk 0:01:14]}  Ndf4 {[%clk 0:01:32]} 21. Bxe6 {[%clk 0:01:08]}  Rxe6 {[%clk 0:01:32]} 22. d4 {[%clk 0:01:06]}  Qd5 {[%clk 0:01:27]} 23. dxe5 {[%clk 0:00:53]}  Qxd2 {[%clk 0:00:38]} 24. Nxd2 {[%clk 0:00:53]}  Rxe5 {[%clk 0:00:38]} 25. Nc4 {[%clk 0:00:43]}  Rxe1+ {[%clk 0:00:38]} 26. Rxe1 {[%clk 0:00:43]}  Nd5 {[%clk 0:00:39]} 27. Rc1 {[%clk 0:00:39]}  Ngf4 {[%clk 0:00:38]} 28. Ne3 {[%clk 0:00:37]}  Nxe3 {[%clk 0:00:34]} 29. fxe3 {[%clk 0:00:37]}  Nd3 {[%clk 0:00:33]} 30. Rd1 {[%clk 0:00:35]}  Nb2 {[%clk 0:00:28]} 31. Rd7 {[%clk 0:00:33]}  b5 {[%clk 0:00:28]} 32. Nf5 {[%clk 0:00:29]}  Re8 {[%clk 0:00:25]} 33. Rd6 {[%clk 0:00:24]}  Re5 {[%clk 0:00:19]} 34. g4 {[%clk 0:00:21]}  g6 {[%clk 0:00:17]} 35. Nd4 {[%clk 0:00:12]}  Rxe3 {[%clk 0:00:17]} 36. Rxc6 {[%clk 0:00:13]}  Re1+ {[%clk 0:00:17]} 37. Kf2 {[%clk 0:00:12]}  Ra1 {[%clk 0:00:18]} 38. Nxb5 {[%clk 0:00:12]}  Rxa2 {[%clk 0:00:19]} 39. Ra6 {[%clk 0:00:12]}  Nc4+ {[%clk 0:00:17]} 40. Kf3 {[%clk 0:00:12]}  Rh2 {[%clk 0:00:16]} 41. Nxa3 {[%clk 0:00:12]}  Rxh3+ {[%clk 0:00:15]} 42. Ke4 {[%clk 0:00:07]}  Rxc3 {[%clk 0:00:15]} 43. Nb5 {[%clk 0:00:08]}  Rb3 {[%clk 0:00:14]} 44. Ra4 {[%clk 0:00:07]}  Nb6 {[%clk 0:00:13]} 45. Nd4 {[%clk 0:00:06]}  Rg3 {[%clk 0:00:13]} 46. Ra8+ {[%clk 0:00:06]}  Nxa8 {[%clk 0:00:13]} 0-1


[Site "https://www.chess.com"]

[Event "Titled Tuesday Blitz May 17 Early 2022"]
[White "Yeletsky, Ivan"]
[Black "Moksh Amit Doshi"]
[WhiteFideId "24180327"]
[BlackFideId "25064967"]
[WhiteElo "2319"]
[BlackElo "2245"]
[Result "1-0"]
[Round "05"]
[TimeControl "180+1"]
[Date "2022.05.17"]
[WhiteClock "0:01:07"]
[BlackClock "0:00:46"]

1. c4 {[%clk 0:03:00]}  Nf6 {[%clk 0:02:33]} 2. Nc3 {[%clk 0:03:00]}  e5 {[%clk 0:02:31]} 3. g3 {[%clk 0:02:59]}  Bb4 {[%clk 0:02:30]} 4. Bg2 {[%clk 0:02:59]}  Bxc3 {[%clk 0:02:30]} 5. dxc3 {[%clk 0:02:57]}  O-O {[%clk 0:02:26]} 6. e4 {[%clk 0:02:51]}  d6 {[%clk 0:02:16]} 7. Qe2 {[%clk 0:02:51]}  a5 {[%clk 0:02:11]} 8. Nh3 {[%clk 0:02:47]}  Na6 {[%clk 0:02:11]} 9. O-O {[%clk 0:02:47]}  Nc5 {[%clk 0:02:11]} 10. f3 {[%clk 0:02:44]}  a4 {[%clk 0:02:08]} 11. Nf2 {[%clk 0:02:36]}  Be6 {[%clk 0:02:07]} 12. f4 {[%clk 0:02:27]}  exf4 {[%clk 0:01:45]} 13. gxf4 {[%clk 0:02:26]}  Re8 {[%clk 0:01:46]} 14. Be3 {[%clk 0:02:15]}  c6 {[%clk 0:01:05]} 15. Rad1 {[%clk 0:02:04]}  Qe7 {[%clk 0:01:04]} 16. Bxc5 {[%clk 0:01:50]}  dxc5 {[%clk 0:01:05]} 17. e5 {[%clk 0:01:50]}  Bf5 {[%clk 0:01:03]} 18. Nh1 {[%clk 0:01:40]}  Bg4 {[%clk 0:01:01]} 19. Bf3 {[%clk 0:01:38]}  Bxf3 {[%clk 0:01:00]} 20. Rxf3 {[%clk 0:01:38]}  Nd7 {[%clk 0:01:01]} 21. Ng3 {[%clk 0:01:37]}  Qe6 {[%clk 0:00:59]} 22. Ne4 {[%clk 0:01:14]}  f6 {[%clk 0:00:49]} 23. Qg2 {[%clk 0:01:09]}  fxe5 {[%clk 0:00:46]} 24. Rxd7 {[%clk 0:01:07]} 1-0


[Site "https://www.chess.com"]

[Event "Titled Tuesday Blitz May 17 Early 2022"]
[White "Andreikin, Dmitry"]
[Black "Visakh N R"]
[WhiteFideId "4158814"]
[BlackFideId "25012223"]
[WhiteElo "2736"]
[BlackElo "2448"]
[Result "1-0"]
[Round "06"]
[TimeControl "180+1"]
[Date "2022.05.17"]
[WhiteClock "0:01:26"]
[BlackClock "0:01:28"]

1. d4 {[%clk 0:03:00]}  Nf6 {[%clk 0:02:56]} 2. c4 {[%clk 0:03:01]}  b6 {[%clk 0:02:55]} 3. Nc3 {[%clk 0:03:00]}  Bb7 {[%clk 0:02:55]} 4. a3 {[%clk 0:03:00]}  e6 {[%clk 0:02:55]} 5. d5 {[%clk 0:03:00]}  g6 {[%clk 0:02:35]} 6. e4 {[%clk 0:02:59]}  d6 {[%clk 0:02:35]} 7. Bd3 {[%clk 0:02:54]}  exd5 {[%clk 0:02:35]} 8. cxd5 {[%clk 0:02:50]}  Bg7 {[%clk 0:02:35]} 9. Nge2 {[%clk 0:02:51]}  O-O {[%clk 0:02:34]} 10. O-O {[%clk 0:02:51]}  c6 {[%clk 0:02:35]} 11. dxc6 {[%clk 0:02:49]}  Nxc6 {[%clk 0:02:34]} 12. f4 {[%clk 0:02:47]}  Re8 {[%clk 0:02:27]} 13. Ng3 {[%clk 0:02:47]}  Rc8 {[%clk 0:02:26]} 14. Kh1 {[%clk 0:02:47]}  Na5 {[%clk 0:02:22]} 15. f5 {[%clk 0:02:47]}  Nc4 {[%clk 0:02:19]} 16. Bxc4 {[%clk 0:02:45]}  Rxc4 {[%clk 0:02:19]} 17. fxg6 {[%clk 0:02:41]}  hxg6 {[%clk 0:02:11]} 18. Bg5 {[%clk 0:02:41]}  Re6 {[%clk 0:02:11]} 19. Nd5 {[%clk 0:02:24]}  Bxd5 {[%clk 0:02:10]} 20. exd5 {[%clk 0:02:25]}  Re5 {[%clk 0:02:10]} 21. Bxf6 {[%clk 0:02:21]}  Bxf6 {[%clk 0:02:11]} 22. Qb3 {[%clk 0:02:14]}  Rc7 {[%clk 0:02:01]} 23. Qf3 {[%clk 0:02:12]}  Bg7 {[%clk 0:02:00]} 24. Ne4 {[%clk 0:02:11]}  f5 {[%clk 0:02:00]} 25. Nc3 {[%clk 0:02:10]}  Rce7 {[%clk 0:01:57]} 26. Qg3 {[%clk 0:02:08]}  Qe8 {[%clk 0:01:57]} 27. Rad1 {[%clk 0:02:03]}  Bf6 {[%clk 0:01:55]} 28. a4 {[%clk 0:01:58]}  Rh7 {[%clk 0:01:53]} 29. Nb5 {[%clk 0:01:55]}  Re3 {[%clk 0:01:49]} 30. Nxd6 {[%clk 0:01:49]}  Rxg3 {[%clk 0:01:48]} 31. Nxe8 {[%clk 0:01:49]}  Be5 {[%clk 0:01:48]} 32. Rde1 {[%clk 0:01:41]}  Re7 {[%clk 0:01:34]} 33. d6 {[%clk 0:01:28]}  Rxe8 {[%clk 0:01:28]} 34. d7 {[%clk 0:01:28]}  Rd8 {[%clk 0:01:28]} 35. Rxe5 {[%clk 0:01:26]} 1-0


[Site "https://www.chess.com"]

[Event "Titled Tuesday Blitz May 17 Early 2022"]
[White "Antipov, Mikhail Al."]
[Black "Vakhlamov, Igor L."]
[WhiteFideId "4107012"]
[BlackFideId "24126748"]
[WhiteElo "2512"]
[BlackElo "2401"]
[Result "0-1"]
[Round "06"]
[TimeControl "180+1"]
[Date "2022.05.17"]
[WhiteClock "0:00:03"]
[BlackClock "0:01:05"]

1. e4 {[%clk 0:03:00]}  c5 {[%clk 0:03:00]} 2. Nf3 {[%clk 0:03:01]}  Nc6 {[%clk 0:03:00]} 3. Nc3 {[%clk 0:03:00]}  g6 {[%clk 0:03:00]} 4. d4 {[%clk 0:03:00]}  cxd4 {[%clk 0:03:01]} 5. Nxd4 {[%clk 0:03:01]}  Bg7 {[%clk 0:03:02]} 6. Be3 {[%clk 0:03:01]}  Nf6 {[%clk 0:03:02]} 7. Bc4 {[%clk 0:02:59]}  O-O {[%clk 0:03:03]} 8. Bb3 {[%clk 0:02:58]}  a5 {[%clk 0:03:03]} 9. O-O {[%clk 0:02:45]}  Nxd4 {[%clk 0:03:03]} 10. Bxd4 {[%clk 0:02:45]}  d6 {[%clk 0:03:04]} 11. Qd3 {[%clk 0:02:24]}  Bd7 {[%clk 0:03:03]} 12. a4 {[%clk 0:02:15]}  Bc6 {[%clk 0:03:03]} 13. Rfe1 {[%clk 0:02:13]}  Nd7 {[%clk 0:03:00]} 14. Bxg7 {[%clk 0:02:10]}  Kxg7 {[%clk 0:03:01]} 15. Qd4+ {[%clk 0:02:11]}  f6 {[%clk 0:02:58]} 16. Bc4 {[%clk 0:02:08]}  Qb6 {[%clk 0:02:58]} 17. Qxb6 {[%clk 0:02:00]}  Nxb6 {[%clk 0:02:59]} 18. Bf1 {[%clk 0:01:57]}  Rfc8 {[%clk 0:02:59]} 19. Red1 {[%clk 0:01:48]}  Kf8 {[%clk 0:02:45]} 20. Rd2 {[%clk 0:01:42]}  Rc7 {[%clk 0:02:46]} 21. f3 {[%clk 0:01:40]}  Rac8 {[%clk 0:02:45]} 22. Bd3 {[%clk 0:01:34]}  Bd7 {[%clk 0:02:43]} 23. Re2 {[%clk 0:00:35]}  Rc5 {[%clk 0:02:19]} 24. Kf2 {[%clk 0:00:33]}  R8c7 {[%clk 0:02:18]} 25. Ra3 {[%clk 0:00:29]}  Kg7 {[%clk 0:02:10]} 26. Ke1 {[%clk 0:00:20]}  g5 {[%clk 0:01:56]} 27. Rd2 {[%clk 0:00:20]}  h5 {[%clk 0:01:56]} 28. g3 {[%clk 0:00:19]}  Kh6 {[%clk 0:01:41]} 29. Kf2 {[%clk 0:00:19]}  Rc8 {[%clk 0:01:28]} 30. h4 {[%clk 0:00:14]}  Bc6 {[%clk 0:01:15]} 31. f4 {[%clk 0:00:05]}  gxh4 {[%clk 0:01:14]} 32. gxh4 {[%clk 0:00:05]}  Rg8 {[%clk 0:01:15]} 33. Be2 {[%clk 0:00:04]}  Nc4 {[%clk 0:01:14]} 34. Bxc4 {[%clk 0:00:04]}  Rxc4 {[%clk 0:01:15]} 35. Kf3 {[%clk 0:00:01]}  f5 {[%clk 0:01:15]} 36. Re2 {[%clk 0:00:01]}  Rg4 {[%clk 0:01:11]} 37. Ra1 {[%clk 0:00:01]}  Rxh4 {[%clk 0:01:10]} 38. Rae1 {[%clk 0:00:01]}  Rg4 {[%clk 0:01:05]} 39. Ke3 {[%clk 0:00:01]}  Bxe4 {[%clk 0:01:03]} 40. Kd2 {[%clk 0:00:02]}  Rxf4 {[%clk 0:01:02]} 41. b3 {[%clk 0:00:02]}  Rc5 {[%clk 0:01:02]} 42. Nxe4 {[%clk 0:00:01]}  Rxe4 {[%clk 0:01:03]} 43. Rxe4 {[%clk 0:00:02]}  fxe4 {[%clk 0:01:04]} 44. Rxe4 {[%clk 0:00:03]}  Re5 {[%clk 0:01:04]} 45. Rf4 {[%clk 0:00:03]}  Kg5 {[%clk 0:01:04]} 46. Rf8 {[%clk 0:00:03]}  h4 {[%clk 0:01:05]} 47. Rb8 {[%clk 0:00:03]}  h3 {[%clk 0:01:05]} 48. Rh8 {[%clk 0:00:03]}  Kg4 {[%clk 0:01:05]} 0-1


[Site "https://www.chess.com"]

[Event "Titled Tuesday Blitz May 17 Early 2022"]
[White "Eynullayev, Atilla"]
[Black "Bluebaum, Matthias"]
[WhiteFideId "13413570"]
[BlackFideId "24651516"]
[WhiteElo "1936"]
[BlackElo "2556"]
[Result "0-1"]
[Round "06"]
[TimeControl "180+1"]
[Date "2022.05.17"]
[WhiteClock "0:00:05"]
[BlackClock "0:00:59"]

1. d4 {[%clk 0:03:00]}  Nf6 {[%clk 0:02:58]} 2. c4 {[%clk 0:03:01]}  e6 {[%clk 0:02:58]} 3. Nc3 {[%clk 0:03:02]}  d5 {[%clk 0:02:58]} 4. cxd5 {[%clk 0:03:02]}  exd5 {[%clk 0:02:59]} 5. Bg5 {[%clk 0:03:02]}  c6 {[%clk 0:02:59]} 6. e3 {[%clk 0:03:02]}  h6 {[%clk 0:03:00]} 7. Bh4 {[%clk 0:03:02]}  Bf5 {[%clk 0:03:00]} 8. Qf3 {[%clk 0:03:01]}  Be6 {[%clk 0:03:00]} 9. Bxf6 {[%clk 0:03:00]}  Qxf6 {[%clk 0:03:01]} 10. Qxf6 {[%clk 0:03:01]}  gxf6 {[%clk 0:03:02]} 11. Nge2 {[%clk 0:03:00]}  a5 {[%clk 0:03:03]} 12. Ng3 {[%clk 0:03:00]}  a4 {[%clk 0:03:04]} 13. Bd3 {[%clk 0:03:01]}  a3 {[%clk 0:03:04]} 14. b3 {[%clk 0:03:01]}  Na6 {[%clk 0:03:05]} 15. Rc1 {[%clk 0:02:57]}  Nb4 {[%clk 0:03:04]} 16. Bb1 {[%clk 0:02:57]}  Kd7 {[%clk 0:03:02]} 17. O-O {[%clk 0:02:54]}  h5 {[%clk 0:03:02]} 18. h3 {[%clk 0:02:50]}  Bd6 {[%clk 0:03:01]} 19. Nf5 {[%clk 0:02:47]}  Rhg8 {[%clk 0:03:01]} 20. f3 {[%clk 0:02:46]}  Rae8 {[%clk 0:02:37]} 21. Nxd6 {[%clk 0:02:46]}  Kxd6 {[%clk 0:02:38]} 22. e4 {[%clk 0:02:46]}  Bxh3 {[%clk 0:02:37]} 23. Rf2 {[%clk 0:02:45]}  Bd7 {[%clk 0:02:36]} 24. Kh2 {[%clk 0:02:37]}  h4 {[%clk 0:02:36]} 25. f4 {[%clk 0:02:22]}  Rg3 {[%clk 0:02:18]} 26. e5+ {[%clk 0:02:16]}  Ke7 {[%clk 0:02:18]} 27. Ne2 {[%clk 0:02:06]}  Re3 {[%clk 0:02:17]} 28. Rc3 {[%clk 0:02:06]}  Rxc3 {[%clk 0:02:10]} 29. Nxc3 {[%clk 0:02:06]}  Rg8 {[%clk 0:02:10]} 30. Rf3 {[%clk 0:01:50]}  Bg4 {[%clk 0:01:58]} 31. Re3 {[%clk 0:01:48]}  f5 {[%clk 0:01:48]} 32. Na4 {[%clk 0:01:41]}  Bd1 {[%clk 0:01:42]} 33. Nc3 {[%clk 0:00:49]}  Bc2 {[%clk 0:01:38]} 34. Bxc2 {[%clk 0:00:50]}  Nxc2 {[%clk 0:01:39]} 35. Rd3 {[%clk 0:00:50]}  Rg4 {[%clk 0:01:36]} 36. Ne2 {[%clk 0:00:47]}  Nb4 {[%clk 0:01:36]} 37. Rd2 {[%clk 0:00:47]}  Ke6 {[%clk 0:01:34]} 38. Kh3 {[%clk 0:00:36]}  f6 {[%clk 0:01:33]} 39. exf6 {[%clk 0:00:31]}  Kxf6 {[%clk 0:01:34]} 40. Rd1 {[%clk 0:00:31]}  Rg8 {[%clk 0:01:30]} 41. Ng1 {[%clk 0:00:27]}  Rg3+ {[%clk 0:01:28]} 42. Kh2 {[%clk 0:00:25]}  Rc3 {[%clk 0:01:28]} 43. Rd2 {[%clk 0:00:20]}  Rc1 {[%clk 0:01:12]} 44. Ne2 {[%clk 0:00:20]}  Re1 {[%clk 0:01:07]} 45. Nc3 {[%clk 0:00:20]}  Rf1 {[%clk 0:01:07]} 46. Ne2 {[%clk 0:00:19]}  b6 {[%clk 0:01:04]} 47. g3 {[%clk 0:00:07]}  Rf2+ {[%clk 0:01:02]} 48. Kh3 {[%clk 0:00:07]}  hxg3 {[%clk 0:01:03]} 49. Kxg3 {[%clk 0:00:07]}  Rf1 {[%clk 0:01:03]} 50. Nc3 {[%clk 0:00:07]}  Rc1 {[%clk 0:01:02]} 51. Ne2 {[%clk 0:00:08]}  Re1 {[%clk 0:01:00]} 52. Kf2 {[%clk 0:00:06]}  Rh1 {[%clk 0:01:00]} 53. Kg2 {[%clk 0:00:06]}  Ra1 {[%clk 0:00:58]} 54. Nc3 {[%clk 0:00:06]}  Ke6 {[%clk 0:00:59]} 55. Kf2 {[%clk 0:00:06]}  Kd6 {[%clk 0:00:59]} 56. Re2 {[%clk 0:00:05]}  Rc1 {[%clk 0:00:59]} 57. Re3 {[%clk 0:00:05]}  Rc2+ {[%clk 0:00:58]} 58. Kf3 {[%clk 0:00:05]}  Nxa2 {[%clk 0:00:59]} 0-1


[Site "https://www.chess.com"]

[Event "Titled Tuesday Blitz May 17 Early 2022"]
[White "Garriga Cazorla, Pere"]
[Black "Indjic, Aleksandar"]
[WhiteFideId "32011601"]
[BlackFideId "911925"]
[WhiteElo "2433"]
[BlackElo "2616"]
[Result "1-0"]
[Round "06"]
[TimeControl "180+1"]
[Date "2022.05.17"]
[WhiteClock "0:00:35"]
[BlackClock "0:00:49"]

1. d4 {[%clk 0:03:00]}  Nf6 {[%clk 0:02:58]} 2. c4 {[%clk 0:03:00]}  c5 {[%clk 0:02:59]} 3. d5 {[%clk 0:03:01]}  e6 {[%clk 0:03:00]} 4. Nc3 {[%clk 0:03:01]}  exd5 {[%clk 0:03:00]} 5. cxd5 {[%clk 0:03:02]}  d6 {[%clk 0:03:01]} 6. e4 {[%clk 0:03:02]}  g6 {[%clk 0:03:01]} 7. f4 {[%clk 0:03:03]}  Bg7 {[%clk 0:03:02]} 8. Bb5+ {[%clk 0:03:03]}  Nfd7 {[%clk 0:03:03]} 9. Bd3 {[%clk 0:03:04]}  Qh4+ {[%clk 0:03:02]} 10. g3 {[%clk 0:03:04]}  Qd8 {[%clk 0:03:02]} 11. Nf3 {[%clk 0:03:04]}  Nb6 {[%clk 0:03:02]} 12. O-O {[%clk 0:03:04]}  Bg4 {[%clk 0:03:02]} 13. Kg2 {[%clk 0:03:04]}  O-O {[%clk 0:03:02]} 14. h3 {[%clk 0:03:05]}  Bxf3+ {[%clk 0:03:03]} 15. Qxf3 {[%clk 0:03:05]}  Na6 {[%clk 0:03:03]} 16. a3 {[%clk 0:03:02]}  c4 {[%clk 0:03:02]} 17. Bc2 {[%clk 0:03:02]}  Nc5 {[%clk 0:03:03]} 18. Be3 {[%clk 0:03:02]}  Rc8 {[%clk 0:03:01]} 19. Rad1 {[%clk 0:03:01]}  Nd3 {[%clk 0:03:02]} 20. Bxd3 {[%clk 0:02:47]}  cxd3 {[%clk 0:03:02]} 21. Rxd3 {[%clk 0:02:47]}  Nc4 {[%clk 0:03:03]} 22. Bc1 {[%clk 0:02:48]}  Qb6 {[%clk 0:03:02]} 23. Rf2 {[%clk 0:02:44]}  Rfe8 {[%clk 0:03:00]} 24. h4 {[%clk 0:02:34]}  h5 {[%clk 0:02:46]} 25. g4 {[%clk 0:02:13]}  hxg4 {[%clk 0:02:24]} 26. Qxg4 {[%clk 0:02:14]}  Nxa3 {[%clk 0:02:21]} 27. h5 {[%clk 0:02:03]}  Bxc3 {[%clk 0:02:07]} 28. hxg6 {[%clk 0:01:39]}  Bg7 {[%clk 0:02:05]} 29. gxf7+ {[%clk 0:01:31]}  Kxf7 {[%clk 0:02:04]} 30. Rg3 {[%clk 0:01:31]}  Qd4 {[%clk 0:02:01]} 31. Qg6+ {[%clk 0:01:21]}  Kf8 {[%clk 0:02:00]} 32. Qxd6+ {[%clk 0:01:12]}  Kg8 {[%clk 0:01:59]} 33. e5 {[%clk 0:01:05]}  Qe4+ {[%clk 0:01:58]} 34. Kh2 {[%clk 0:01:04]}  Rxc1 {[%clk 0:01:58]} 35. Rxg7+ {[%clk 0:00:47]}  Kxg7 {[%clk 0:01:58]} 36. Rg2+ {[%clk 0:00:48]}  Qxg2+ {[%clk 0:01:49]} 37. Kxg2 {[%clk 0:00:49]}  Nc4 {[%clk 0:01:45]} 38. Qd7+ {[%clk 0:00:41]}  Kf8 {[%clk 0:01:45]} 39. e6 {[%clk 0:00:42]}  Rc2+ {[%clk 0:00:54]} 40. Kg3 {[%clk 0:00:37]}  Nd6 {[%clk 0:00:49]} 41. Qxd6+ {[%clk 0:00:37]}  Kg8 {[%clk 0:00:49]} 42. Qd7 {[%clk 0:00:35]} 1-0


[Site "https://www.chess.com"]